bitfinex-derivatives/quotes_BTCF0:USTF0_20241208
["timestamp","ask_amount","ask_price","bid_price","bid_amount"]
[1733638412127,0.007,99497.0,99496.0,0.02172439]
[1733638412822,0.007,99497.0,99496.0,0.02800476]
[1733638413725,0.002,99497.0,99496.0,0.02800476]
[1733638414029,0.003,99497.0,99496.0,0.02800476]
[1733638414918,0.003,99497.0,99496.0,0.02700476]
[1733638416436,0.003,99497.0,99496.0,0.02700507]
[1733638419225,0.003,99497.0,99496.0,0.02729126]
[1733638419632,0.003,99497.0,99496.0,0.02700507]
[1733638420028,0.003,99497.0,99496.0,0.02729126]
[1733638420335,0.003,99497.0,99496.0,0.02700507]
[1733638420535,0.003,99497.0,99496.0,0.06215507]
[1733638421033,0.003,99497.0,99496.0,0.06244162]
[1733638421034,0.03815,99497.0,99496.0,0.06244162]
[1733638421532,0.12812674,99497.0,99496.0,0.06244162]
[1733638422233,0.03815,99497.0,99496.0,0.07442108]
[1733638422537,0.03815,99497.0,99496.0,0.06244187]
[1733638422925,0.04808098,99497.0,99496.0,0.06244187]
[1733638423234,0.04808098,99497.0,99496.0,0.06215507]
[1733638423440,0.04808098,99497.0,99496.0,0.06244193]
[1733638423634,0.04808098,99497.0,99496.0,0.04959483]
[1733638423834,0.04808098,99497.0,99496.0,0.06215585]
[1733638424035,0.04808098,99497.0,99496.0,0.06244273]
[1733638424238,0.04808098,99497.0,99496.0,0.06215585]
[1733638424532,0.16796977,99497.0,99496.0,0.06215585]
[1733638425533,0.04808098,99497.0,99496.0,0.06215585]
[1733638426936,0.04808098,99497.0,99496.0,0.06215605]
[1733638429029,0.04808098,99497.0,99496.0,0.02700605]
[1733638429240,0.09692423,99497.0,99496.0,0.01444503]
[1733638429442,0.45772423,99497.0,99496.0,0.01444503]
[1733638429741,0.5862947,99497.0,99496.0,0.01444503]
[1733638430541,0.5862947,99497.0,99496.0,0.01444612]
[1733638432741,0.45772423,99497.0,99496.0,0.01444612]
[1733638432938,0.44779325,99497.0,99496.0,0.01444612]
[1733638433441,0.39895,99497.0,99496.0,0.01444612]
[1733638433632,0.3638,99497.0,99496.0,0.01444595]
[1733638433828,0.39895,99497.0,99496.0,0.04959595]
[1733638434735,0.39895,99497.0,99496.0,0.06215681]
[1733638436139,0.5191857,99497.0,99496.0,0.06215681]
[1733638437434,0.39895,99497.0,99496.0,0.06215681]
[1733638441449,0.51923718,99497.0,99496.0,0.06215681]
[1733638441749,0.51923718,99497.0,99496.0,0.24275599]
[1733638442145,0.51923718,99497.0,99496.0,0.2427581]
[1733638442345,0.39895,99497.0,99496.0,0.2427581]
[1733638442541,0.51921701,99497.0,99496.0,0.2427581]
[1733638442948,0.48406701,99497.0,99496.0,0.2427577]
[1733638443354,0.3638,99497.0,99496.0,0.03515]
[1733638443546,0.003,99497.0,99496.0,0.06215618]
[1733638444547,0.001,99497.0,99496.0,0.06515618]
[1733638444950,0.03615,99497.0,99496.0,0.06515618]
[1733638445146,0.03515,99497.0,99496.0,0.06515618]
[1733638445353,0.03515,99497.0,99496.0,0.06715618]
[1733638446339,0.03515,99497.0,99496.0,0.04015]
[1733638446541,0.03515,99497.0,99496.0,0.06715618]
[1733638446943,0.1554009,99497.0,99496.0,0.06715618]
[1733638447141,0.03515,99497.0,99496.0,0.06715618]
[1733638449054,0.03515,99497.0,99496.0,0.24775463]
[1733638449352,0.03515,99497.0,99496.0,0.06715618]
[1733638449751,0.03515,99497.0,99496.0,0.0671564]
[1733638451458,0.3608,99498.0,99496.0,0.0320064]
[1733638451655,0.3608,99498.0,99497.0,0.0621564]
[1733638452855,0.3608,99498.0,99497.0,0.0651564]
[1733638453560,0.3608,99498.0,99497.0,0.06715494]
[1733638454352,0.3608,99498.0,99497.0,0.06415494]
[1733638454552,0.3608,99498.0,99497.0,0.06915494]
[1733638454959,0.3608,99498.0,99497.0,0.06715494]
[1733638455258,0.3608,99498.0,99497.0,0.06815494]
[1733638456272,0.1202411,99502.0,99497.0,0.06515486]
[1733638456454,0.1202411,99504.0,99503.0,0.035148]
[1733638456757,0.00012816,99508.0,99507.0,0.035147]
[1733638456758,0.12036926,99508.0,99507.0,0.035147]
[1733638456952,0.00012816,99508.0,99507.0,0.30286461]
[1733638457150,0.09030442,99508.0,99507.0,0.06215084]
[1733638457464,0.09030442,99508.0,99507.0,0.0624375]
[1733638457655,0.09030442,99508.0,99507.0,0.16264577]
[1733638457856,0.09030442,99508.0,99507.0,0.16364577]
[1733638457857,0.00012816,99508.0,99507.0,0.16364577]
[1733638458263,0.00012816,99508.0,99507.0,0.17567382]
[1733638458458,0.09011852,99515.0,99508.0,0.035146]
[1733638458658,0.09011852,99515.0,99514.0,0.035144]
[1733638458860,0.09011852,99515.0,99514.0,0.06214784]
[1733638459053,0.09011852,99516.0,99515.0,0.035144]
[1733638459255,0.00150776,99517.0,99516.0,0.035143]
[1733638459461,0.09161258,99517.0,99516.0,0.06214684]
[1733638459651,0.396861,99524.0,99516.0,0.02700384]
[1733638459652,0.09010482,99519.0,99516.0,0.02700384]
[1733638459851,0.09010482,99519.0,99518.0,0.035143]
[1733638460064,0.09010482,99520.0,99518.0,0.06214684]
[1733638460259,0.09010482,99521.0,99520.0,0.035142]
[1733638460464,0.09010482,99521.0,99520.0,0.06214584]
[1733638460669,0.09010482,99522.0,99520.0,0.06214584]
[1733638460855,0.09010482,99523.0,99522.0,0.035141]
[1733638461166,0.45090482,99524.0,99522.0,0.06214484]
[1733638461361,0.3608,99524.0,99523.0,0.02700384]
[1733638462460,0.3628,99524.0,99523.0,0.02729024]
[1733638463062,0.397941,99524.0,99523.0,0.02729024]
[1733638463464,0.397941,99524.0,99523.0,0.02700384]
[1733638463660,0.397941,99524.0,99523.0,0.02700159]
[1733638463967,0.3628,99524.0,99523.0,0.02700159]
[1733638466863,0.3628,99524.0,99523.0,0.02699848]
[1733638471469,0.3628,99524.0,99523.0,0.06213948]
[1733638471956,0.3628,99524.0,99523.0,0.0495818]
[1733638472162,0.3628,99524.0,99523.0,0.06213902]
[1733638472864,0.45273805,99524.0,99523.0,0.06213902]
[1733638473573,0.3628,99524.0,99523.0,0.06213906]
[1733638473965,0.45272903,99524.0,99523.0,0.06213906]
[1733638474163,0.3628,99524.0,99523.0,0.06213906]
[1733638475472,0.3628,99524.0,99523.0,0.02699806]
[1733638475473,0.397941,99524.0,99523.0,0.02699806]
[1733638476770,0.430241,99524.0,99523.0,0.02699806]
[1733638477074,0.52017499,99524.0,99523.0,0.02699884]
[1733638477577,0.430241,99524.0,99523.0,0.02699884]
[1733638477777,0.52019494,99524.0,99523.0,0.02699884]
[1733638478180,0.430241,99524.0,99523.0,0.02699884]
[1733638479072,0.430241,99524.0,99523.0,0.01444162]
[1733638479470,0.430241,99524.0,99523.0,0.02699967]
[1733638481882,0.430241,99524.0,99523.0,0.06214067]
[1733638482579,0.3951,99524.0,99523.0,0.06242681]
[1733638482984,0.3951,99524.0,99523.0,0.06214067]
[1733638483388,0.430241,99524.0,99523.0,0.06214067]
[1733638484394,0.430241,99524.0,99523.0,0.06213996]
[1733638485783,0.397941,99524.0,99523.0,0.06213996]
[1733638486384,0.397941,99524.0,99523.0,0.24257524]
[1733638486584,0.397941,99524.0,99523.0,0.06213996]
[1733638487582,0.3628,99524.0,99523.0,0.24257524]
[1733638488485,0.3628,99524.0,99523.0,0.06213996]
[1733638489288,0.12225352,99524.0,99523.0,0.52341874]
[1733638489589,0.09019318,99524.0,99523.0,0.52341874]
[1733638489883,0.09019318,99527.0,99523.0,0.83316514]
[1733638490090,0.09019318,99527.0,99526.0,0.03514]
[1733638490279,0.09019318,99527.0,99526.0,0.06213896]
[1733638490486,0.09019318,99528.0,99527.0,0.035139]
[1733638490783,0.09019318,99528.0,99527.0,0.06213796]
[1733638491085,0.09019318,99530.0,99527.0,0.02699896]
[1733638491285,0.09019318,99531.0,99530.0,0.035138]
[1733638491479,9.532e-05,99533.0,99532.0,0.035138]
[1733638491785,9.532e-05,99533.0,99532.0,0.42293696]
[1733638491984,9.532e-05,99533.0,99532.0,0.5234117]
[1733638492883,0.00309532,99533.0,99532.0,0.5234117]
[1733638493182,0.00309532,99533.0,99532.0,0.5244117]
[1733638493486,0.00309532,99533.0,99532.0,0.83189902]
[1733638493987,0.00309532,99533.0,99532.0,0.80490006]
[1733638494183,0.00309532,99533.0,99532.0,0.83189164]
[1733638494378,0.00309532,99533.0,99532.0,1.1055391]
[1733638494587,9.532e-05,99533.0,99532.0,1.13253068]
[1733638494786,0.00209532,99533.0,99532.0,1.13253068]
[1733638494987,0.00209532,99533.0,99532.0,0.82504336]
[1733638495483,0.00209532,99533.0,99532.0,0.52340432]
[1733638495989,0.09019318,99548.0,99547.0,0.035132]
[1733638496183,0.09019318,99548.0,99547.0,0.06240999]
[1733638496488,0.09019318,99549.0,99548.0,0.035132]
[1733638496687,0.03513,99554.0,99550.0,0.035131]
[1733638496688,0.09019318,99551.0,99550.0,0.035131]
[1733638496890,0.03513,99554.0,99553.0,0.03513]
[1733638497189,0.03513,99554.0,99553.0,0.0621213]
[1733638497492,0.11998868,99554.0,99553.0,0.04956735]
[1733638497787,0.11998868,99554.0,99553.0,0.06212102]
[1733638498085,0.11998455,99554.0,99553.0,0.0269901]
[1733638498387,0.11998455,99555.0,99554.0,0.03513]
[1733638498587,0.11998455,99555.0,99554.0,0.0621201]
[1733638499383,0.11998455,99556.0,99554.0,0.0269901]
[1733638499584,0.11998455,99556.0,99555.0,0.04956643]
[1733638499780,0.035129,99557.0,99555.0,0.04956643]
[1733638499986,0.035129,99557.0,99556.0,0.01443643]
[1733638501183,0.035129,99557.0,99556.0,0.04956543]
[1733638501382,0.035129,99557.0,99556.0,0.04956567]
[1733638501585,0.035129,99557.0,99556.0,0.04328872]
[1733638501781,0.041129,99557.0,99556.0,0.04328872]
[1733638502697,0.041129,99557.0,99556.0,0.04528872]
[1733638503396,0.041129,99557.0,99556.0,0.04528913]
[1733638504487,0.041129,99557.0,99556.0,0.01016013]
[1733638506294,0.041129,99557.0,99556.0,0.04528913]
[1733638508285,0.13103946,99557.0,99556.0,0.05156625]
[1733638509192,0.041129,99557.0,99556.0,0.05156625]
[1733638509388,0.041129,99557.0,99556.0,0.06411993]
[1733638510693,0.006,99557.0,99556.0,0.06411993]
[1733638510900,0.006,99557.0,99556.0,0.06420602]
[1733638511188,0.0341,99558.0,99556.0,0.02807702]
[1733638511394,0.396928,99560.0,99556.0,0.02807702]
[1733638511395,0.3618,99560.0,99557.0,0.01443725]
[1733638511695,0.48078101,99562.0,99561.0,0.035127]
[1733638511696,0.36186427,99562.0,99561.0,0.035127]
[1733638511884,0.36090426,99562.0,99561.0,0.06211776]
[1733638512195,0.00010426,99562.0,99561.0,0.06211776]
[1733638513889,0.00010426,99562.0,99561.0,0.04768051]
[1733638514085,0.00010426,99562.0,99561.0,0.06211505]
[1733638514595,0.39903126,99562.0,99561.0,0.02698805]
[1733638514996,0.39903126,99562.0,99561.0,0.01543454]
[1733638515384,0.52277761,99562.0,99561.0,0.01543454]
[1733638515890,0.52277761,99562.0,99561.0,0.05056154]
[1733638516492,0.52280403,99562.0,99561.0,0.06311473]
[1733638516697,0.43283126,99562.0,99561.0,0.06311473]
[1733638516887,0.43283126,99562.0,99561.0,0.04868019]
[1733638517088,0.43283126,99562.0,99561.0,0.06311634]
[1733638517794,0.43283126,99562.0,99561.0,0.05056313]
[1733638518495,0.43283126,99562.0,99561.0,0.06311631]
[1733638518807,0.43283126,99562.0,99561.0,0.07298435]
[1733638519093,0.43283126,99562.0,99561.0,0.06043117]
[1733638519600,0.55290495,99562.0,99561.0,0.06043117]
[1733638520094,0.43283126,99562.0,99561.0,0.06043117]
[1733638520398,0.43283126,99562.0,99561.0,0.06043131]
[1733638521099,0.43283126,99562.0,99561.0,0.02530431]
[1733638523190,0.5831025,99562.0,99561.0,0.02559064]
[1733638523387,0.5831025,99562.0,99561.0,0.02530431]
[1733638523587,0.43283126,99562.0,99561.0,0.02530431]
[1733638523787,0.43283126,99562.0,99561.0,0.01086804]
[1733638523992,0.58301274,99562.0,99561.0,0.02559106]
[1733638524196,0.58301274,99562.0,99561.0,0.02530426]
[1733638524396,0.58301274,99562.0,99561.0,0.02559069]
[1733638524800,0.43283126,99562.0,99561.0,0.02530426]
[1733638525405,0.58301274,99562.0,99561.0,0.02530426]
[1733638525696,0.58302392,99562.0,99561.0,0.02530426]
[1733638525904,0.58302392,99562.0,99561.0,0.02559066]
[1733638526409,0.58302392,99562.0,99561.0,0.02530426]
[1733638526703,0.15019266,99564.0,99561.0,0.12574469]
[1733638527016,0.3608,99581.0,99580.0,0.035121]
[1733638527201,0.3608,99581.0,99580.0,0.0432803]
[1733638527500,0.3608,99581.0,99580.0,0.30060773]
[1733638527707,0.3608,99581.0,99580.0,0.41547939]
[1733638528393,0.3608,99581.0,99580.0,0.17509243]
[1733638528710,0.3618,99581.0,99580.0,0.17509243]
[1733638529202,0.3618,99581.0,99580.0,0.41534654]
[1733638529203,0.001,99581.0,99580.0,0.41534654]
[1733638529396,0.001,99581.0,99580.0,0.17509243]
[1733638530704,0.001,99581.0,99580.0,0.17509158]
[1733638530904,0.001,99581.0,99580.0,0.16254166]
[1733638531311,0.001,99581.0,99580.0,0.3425567]
[1733638532000,0.001,99581.0,99580.0,0.16254166]
[1733638532695,0.001,99581.0,99580.0,0.3425567]
[1733638533305,0.001,99581.0,99580.0,0.16254166]
[1733638533895,0.001,99581.0,99580.0,0.16254145]
[1733638534398,0.001,99581.0,99580.0,0.16254149]
[1733638537407,0.001,99581.0,99580.0,0.1274206]
[1733638537609,0.001,99581.0,99580.0,0.02698118]
[1733638537610,0.03612,99581.0,99580.0,0.02698118]
[1733638538003,0.13412,99581.0,99580.0,0.01443171]
[1733638539012,0.14405602,99581.0,99580.0,0.01443171]
[1733638540714,0.49492,99581.0,99580.0,0.01443171]
[1733638544213,0.035122,99577.0,99576.0,0.035122]
[1733638544605,0.035122,99577.0,99576.0,0.06210703]
[1733638545614,0.035122,99577.0,99576.0,0.02698503]
[1733638546511,0.035122,99577.0,99576.0,0.01443385]
[1733638546911,0.035122,99577.0,99576.0,0.02698515]
[1733638547117,0.035122,99577.0,99576.0,0.06210715]
[1733638547512,0.035122,99577.0,99576.0,0.06210711]
[1733638547816,0.035122,99577.0,99576.0,0.06210706]
[1733638549114,0.035122,99577.0,99576.0,0.062107]
[1733638549312,0.035122,99577.0,99576.0,0.026985]
[1733638549612,0.035122,99577.0,99576.0,0.01443376]
[1733638550616,0.035122,99577.0,99576.0,0.00815821]
[1733638551035,0.04526964,99577.0,99576.0,0.00815821]
[1733638552116,0.09408115,99577.0,99572.0,0.005]
[1733638552317,0.395923,99573.0,99566.0,0.005]
[1733638552522,0.395923,99573.0,99560.0,0.0015065]
[1733638552523,0.3608,99573.0,99567.0,0.00502144]
[1733638552707,0.035125,99568.0,99560.0,0.0065065]
[1733638552908,0.3608,99564.0,99561.0,0.01129816]
[1733638553119,0.3608,99564.0,99560.0,0.0065065]
[1733638553120,0.035127,99563.0,99562.0,0.01129819]
[1733638554213,0.035127,99563.0,99562.0,0.01429819]
[1733638554416,0.035127,99563.0,99562.0,0.003]
[1733638554612,0.035127,99563.0,99562.0,0.01429818]
[1733638554808,0.035127,99563.0,99562.0,0.01729818]
[1733638555323,0.035127,99563.0,99562.0,0.01629818]
[1733638555915,0.035127,99563.0,99562.0,0.01329818]
[1733638556115,0.035127,99563.0,99562.0,0.01629818]
[1733638557415,0.035127,99563.0,99562.0,0.004]
[1733638557614,0.035127,99563.0,99562.0,0.01529822]
[1733638558532,0.07647475,99563.0,99562.0,0.01529835]
[1733638559024,0.07647475,99563.0,99562.0,0.01529839]
[1733638559419,0.11117475,99563.0,99562.0,0.00902143]
[1733638559812,0.11117475,99563.0,99562.0,0.01529834]
[1733638560015,0.11117475,99563.0,99562.0,0.00902143]
[1733638560216,0.11117475,99563.0,99562.0,0.01529837]
[1733638560427,0.11117475,99563.0,99562.0,0.00902143]
[1733638560619,0.11117475,99563.0,99560.0,0.0015065]
[1733638560822,0.11117475,99563.0,99554.0,0.005]
[1733638560823,0.035129,99557.0,99554.0,0.005]
[1733638561124,0.035129,99557.0,99548.0,0.0002861]
[1733638561125,0.035129,99557.0,99548.0,0.005]
[1733638562118,0.035129,99557.0,99556.0,0.00508609]
[1733638564320,0.035129,99557.0,99556.0,0.00322463]
[1733638564527,0.035129,99557.0,99556.0,0.00722463]
[1733638564822,0.035129,99557.0,99556.0,0.04235363]
[1733638565023,0.035129,99557.0,99556.0,0.05090711]
[1733638565326,0.038129,99557.0,99556.0,0.05090711]
[1733638566032,0.038129,99557.0,99556.0,0.15135258]
[1733638566033,0.003,99557.0,99556.0,0.15135258]
[1733638566226,0.035127,99561.0,99560.0,0.035128]
[1733638566420,0.035127,99561.0,99560.0,0.05082002]
[1733638566729,0.25034639,99582.0,99560.0,0.05082002]
[1733638566730,0.035124,99571.0,99570.0,0.035124]
[1733638566918,0.035124,99571.0,99570.0,0.05110227]
[1733638567224,0.035124,99571.0,99570.0,0.05081602]
[1733638567428,0.035124,99571.0,99570.0,0.29104632]
[1733638567733,0.035122,99576.0,99575.0,0.035122]
[1733638567921,0.035122,99576.0,99575.0,0.05110027]
[1733638568116,0.035122,99576.0,99575.0,0.23100931]
[1733638568316,0.51074639,99595.0,99576.0,0.035122]
[1733638568317,0.03512,99582.0,99576.0,0.035122]
[1733638568519,0.035118,99588.0,99576.0,0.32321705]
[1733638568735,0.035118,99588.0,99586.0,0.00028602]
[1733638568921,0.035118,99588.0,99587.0,0.05737084]
[1733638569229,0.035118,99588.0,99587.0,0.05708482]
[1733638570222,0.035118,99588.0,99587.0,0.05737078]
[1733638570418,0.037118,99588.0,99587.0,0.05708482]
[1733638570725,0.039118,99588.0,99587.0,0.06210454]
[1733638571232,0.039118,99588.0,99587.0,0.02798654]
[1733638573323,0.039118,99588.0,99587.0,0.02798543]
[1733638573726,0.039118,99588.0,99587.0,0.02798148]
[1733638575926,0.039118,99588.0,99587.0,0.02798144]
[1733638576741,0.039118,99588.0,99587.0,0.01543191]
[1733638576931,0.039118,99588.0,99587.0,0.02798137]
[1733638577329,0.039118,99588.0,99587.0,0.02170665]
[1733638577532,0.039118,99588.0,99587.0,0.00915719]
[1733638578335,0.039118,99588.0,99587.0,0.00413738]
[1733638578935,0.039118,99588.0,99587.0,0.001]
[1733638579647,0.039118,99588.0,99587.0,0.0041378]
[1733638579843,0.04925684,99588.0,99587.0,0.001]
[1733638580939,0.41005684,99588.0,99587.0,0.0041378]
[1733638581139,0.41005684,99588.0,99587.0,0.001]
[1733638582936,0.41005684,99588.0,99587.0,0.00413789]
[1733638583843,0.41005684,99588.0,99587.0,0.001]
[1733638584049,0.41005684,99588.0,99587.0,0.00413786]
[1733638585044,0.41005684,99588.0,99587.0,0.00915828]
[1733638586545,0.04925684,99588.0,99587.0,0.00915828]
[1733638586849,0.41005684,99588.0,99587.0,0.00915828]
[1733638587140,0.41005684,99588.0,99587.0,0.00915817]
[1733638591444,0.41005684,99588.0,99587.0,0.00413776]
[1733638591651,0.56000323,99588.0,99587.0,0.00413776]
[1733638592340,0.41005684,99588.0,99587.0,0.00413776]
[1733638592542,0.45886174,99588.0,99587.0,0.00413776]
[1733638593336,0.41005684,99588.0,99587.0,0.00915825]
[1733638593539,0.45886046,99588.0,99587.0,0.00915825]
[1733638594154,0.45886046,99588.0,99587.0,0.00915824]
[1733638595049,0.45886046,99588.0,99587.0,0.00413778]
[1733638595247,0.45886046,99588.0,99587.0,0.00915846]
[1733638595646,0.45886046,99588.0,99587.0,7.8e-07]
[1733638597947,0.45886046,99588.0,99587.0,0.00502151]
[1733638603651,0.45886046,99588.0,99587.0,0.01129705]
[1733638603946,0.03512,99581.0,99580.0,0.09990771]
[1733638604146,0.15520932,99581.0,99580.0,0.12346687]
[1733638604350,0.15520932,99581.0,99580.0,0.12346679]
[1733638604559,0.15520932,99581.0,99580.0,0.12346664]
[1733638604760,0.03512,99581.0,99580.0,0.12346664]
[1733638605252,0.03612,99581.0,99580.0,0.12346664]
[1733638605453,0.03912,99581.0,99580.0,0.08834564]
[1733638605658,0.03912,99581.0,99580.0,0.12346664]
[1733638607151,0.39992,99581.0,99580.0,0.12346664]
[1733638607750,0.39992,99581.0,99580.0,0.12660434]
[1733638607954,0.39992,99581.0,99580.0,0.09148334]
[1733638608155,0.39992,99581.0,99580.0,0.05988334]
[1733638608456,0.39992,99581.0,99580.0,0.19501245]
[1733638608952,0.39992,99581.0,99580.0,0.01443311]
[1733638610566,0.55010424,99581.0,99580.0,0.01443311]
[1733638611061,0.39992,99581.0,99580.0,0.0269839]
[1733638611257,0.39992,99581.0,99580.0,0.0621049]
[1733638611655,0.03912,99581.0,99580.0,0.0621049]
[1733638612960,0.03912,99581.0,99580.0,0.06210406]
[1733638614457,0.03912,99581.0,99580.0,0.04767117]
[1733638614458,0.15924251,99581.0,99580.0,0.04767117]
[1733638614660,0.15924251,99581.0,99580.0,0.06210386]
[1733638614860,0.03912,99581.0,99580.0,0.06210386]
[1733638615063,0.15924251,99581.0,99580.0,0.06210386]
[1733638615457,0.15924251,99581.0,99580.0,0.06239041]
[1733638616457,0.03912,99581.0,99580.0,0.06239041]
[1733638616663,0.15924251,99581.0,99580.0,0.06239041]
[1733638617054,0.03912,99581.0,99580.0,0.06239041]
[1733638617260,0.03912,99581.0,99580.0,0.30259344]
[1733638617451,0.03912,99581.0,99580.0,0.06239054]
[1733638618062,0.03912,99581.0,99580.0,0.06210401]
[1733638620956,0.03912,99581.0,99580.0,0.06239053]
[1733638621158,0.03912,99581.0,99580.0,0.30230704]
[1733638621662,0.03912,99581.0,99580.0,0.30259356]
[1733638621863,0.03912,99581.0,99580.0,0.30230704]
[1733638622057,0.03912,99581.0,99580.0,0.30259356]
[1733638622667,0.03912,99581.0,99580.0,0.30230704]
[1733638622864,0.03912,99581.0,99580.0,0.30259356]
[1733638623167,0.03912,99581.0,99580.0,0.30259329]
[1733638623560,0.03912,99581.0,99580.0,0.29757302]
[1733638623768,0.03912,99581.0,99580.0,0.32232491]
[1733638624167,0.03912,99581.0,99580.0,0.08212188]
[1733638624367,0.03912,99581.0,99580.0,0.3227222]
[1733638624669,0.03912,99581.0,99580.0,0.32243565]
[1733638626567,0.03912,99581.0,99580.0,0.08183542]
[1733638628466,0.03912,99581.0,99580.0,0.32243574]
[1733638629870,0.03912,99581.0,99580.0,0.30800324]
[1733638630073,0.03912,99581.0,99580.0,0.32243583]
[1733638630465,0.03912,99581.0,99580.0,0.08183551]
[1733638630775,0.03912,99581.0,99580.0,0.32255949]
[1733638631469,0.03912,99581.0,99580.0,0.08183551]
[1733638633377,0.004,99581.0,99580.0,0.08183547]
[1733638634176,0.004,99581.0,99580.0,0.18225673]
[1733638636861,0.004,99581.0,99580.0,0.18225576]
[1733638637062,0.004,99581.0,99580.0,0.18225508]
[1733638640278,0.004,99581.0,99580.0,0.48293787]
[1733638640778,0.004,99581.0,99580.0,0.79679407]
[1733638640974,0.004,99581.0,99580.0,0.49611168]
[1733638641884,0.004,99581.0,99580.0,0.18225548]
[1733638642381,0.004,99581.0,99580.0,0.79704337]
[1733638642576,0.004,99581.0,99580.0,0.48348983]
[1733638642780,0.004,99581.0,99580.0,0.79675646]
[1733638642982,0.004,99581.0,99580.0,0.48348979]
[1733638643183,0.004,99581.0,99580.0,0.48320306]
[1733638643480,0.004,99581.0,99580.0,0.18225548]
[1733638644078,0.004,99581.0,99580.0,0.79690615]
[1733638644279,0.004,99581.0,99580.0,0.49583141]
[1733638645277,0.12012424,99594.0,99591.0,0.035117]
[1733638645478,0.12012424,99594.0,99593.0,0.035116]
[1733638645677,0.12012424,99594.0,99593.0,0.06209719]
[1733638646188,0.12012424,99595.0,99594.0,0.035116]
[1733638646374,0.12012424,99595.0,99594.0,0.06209719]
[1733638646777,0.1,99600.0,99594.0,0.02726786]
[1733638647079,0.1,99600.0,99599.0,0.035114]
[1733638647276,0.1,99600.0,99599.0,0.04954574]
[1733638647474,0.14879372,99600.0,99599.0,0.04954574]
[1733638647988,0.18690772,99600.0,99599.0,0.04954574]
[1733638648177,0.19190772,99600.0,99599.0,0.04954574]
[1733638648376,0.19190802,99600.0,99599.0,0.04954574]
[1733638649384,0.18890802,99600.0,99599.0,0.05054574]
[1733638650177,0.140114,99600.0,99599.0,0.05054574]
[1733638650884,0.105,99600.0,99599.0,0.05054574]
[1733638652181,0.25500413,99600.0,99599.0,0.05054574]
[1733638653384,0.105,99600.0,99599.0,0.06309412]
[1733638653780,0.105,99600.0,99599.0,0.0630928]
[1733638654086,0.105,99600.0,99599.0,0.05493642]
[1733638654285,0.105,99600.0,99599.0,0.05807338]
[1733638654479,0.105,99600.0,99599.0,0.06309263]
[1733638656186,0.105,99600.0,99599.0,0.16349474]
[1733638656582,0.105,99600.0,99599.0,0.16378126]
[1733638656782,0.19497516,99600.0,99599.0,0.16349474]
[1733638656987,0.105,99600.0,99599.0,0.16349474]
[1733638657191,0.105,99600.0,99599.0,0.34386854]
[1733638657490,0.105,99600.0,99599.0,0.16349346]
[1733638659085,0.105,99600.0,99599.0,0.14906372]
[1733638659295,0.105,99600.0,99599.0,0.16349341]
[1733638659982,0.105,99600.0,99599.0,0.16377957]
[1733638660494,0.105,99600.0,99599.0,0.15123196]
[1733638660793,0.105,99600.0,99599.0,0.16377953]
[1733638661195,0.105,99600.0,99599.0,0.16349337]
[1733638662697,0.19496676,99600.0,99599.0,0.16349337]
[1733638662894,0.105,99600.0,99599.0,0.34384418]
[1733638663094,0.105,99600.0,99599.0,0.16349337]
[1733638663494,0.105,99600.0,99599.0,0.34384496]
[1733638663695,0.105,99600.0,99599.0,0.16349337]
[1733638663892,0.105,99600.0,99599.0,0.14906313]
[1733638664200,0.105,99600.0,99599.0,0.31686214]
[1733638664503,0.105,99600.0,99599.0,0.16349224]
[1733638664504,0.19496676,99600.0,99599.0,0.16349224]
[1733638665403,0.105,99600.0,99599.0,0.16349224]
[1733638667399,0.105,99600.0,99599.0,0.16349277]
[1733638668604,0.19495072,99600.0,99599.0,0.16349277]
[1733638668906,0.105,99600.0,99599.0,0.16349277]
[1733638670400,0.19496063,99600.0,99599.0,0.40419525]
[1733638670902,0.19496063,99600.0,99599.0,0.40419536]
[1733638672102,0.105,99600.0,99599.0,0.16349288]
[1733638672307,0.105,99600.0,99599.0,0.40401757]
[1733638672507,0.105,99600.0,99599.0,0.16349288]
[1733638674604,0.105,99600.0,99599.0,0.13651611]
[1733638674808,0.105,99600.0,99599.0,0.1634929]
[1733638676901,0.105,99600.0,99599.0,0.16377933]
[1733638677108,0.105,99600.0,99599.0,0.1634929]
[1733638677297,0.105,99600.0,99599.0,0.1953929]
[1733638677496,0.19500806,99600.0,99599.0,0.1953929]
[1733638677711,0.19500806,99600.0,99599.0,0.1634929]
[1733638678008,0.105,99600.0,99599.0,0.06309079]
[1733638679013,0.105,99600.0,99599.0,0.06209079]
[1733638679210,0.105,99600.0,99599.0,0.06309079]
[1733638679401,0.1,99600.0,99599.0,0.06309079]
[1733638679602,0.103,99600.0,99599.0,0.06309079]
[1733638680710,0.103,99600.0,99599.0,0.06309092]
[1733638680906,0.103,99600.0,99599.0,0.3037662]
[1733638681106,0.103,99600.0,99599.0,0.06309092]
[1733638681503,0.103,99600.0,99599.0,0.30379253]
[1733638681799,0.103,99600.0,99599.0,0.06309092]
[1733638682411,0.08041583,99600.0,99599.0,0.16349303]
[1733638683614,0.44121583,99600.0,99599.0,0.027978]
[1733638683910,0.44121583,99600.0,99599.0,0.01542957]
[1733638683911,0.581208,99600.0,99599.0,0.01542957]
[1733638684110,0.76153643,99600.0,99593.0,0.00028659]
[1733638684312,0.76153643,99600.0,99590.0,0.00028659]
[1733638684313,0.15004967,99597.0,99590.0,0.00028659]
[1733638684508,0.15004967,99597.0,99589.0,0.00028659]
[1733638684509,0.3608,99591.0,99589.0,0.00028659]
[1733638684707,0.3608,99591.0,99589.0,0.24106626]
[1733638684922,0.3608,99591.0,99589.0,0.24077967]
[1733638684923,0.035117,99590.0,99589.0,0.24077967]
[1733638685108,0.48084069,99591.0,99587.0,0.03540459]
[1733638685109,0.035118,99589.0,99587.0,0.03540459]
[1733638685304,0.035118,99589.0,99588.0,0.01254989]
[1733638685711,0.035118,99588.0,99587.0,0.035118]
[1733638685914,0.035118,99588.0,99587.0,0.04766808]
[1733638686209,0.1250983,99588.0,99587.0,0.28828496]
[1733638686407,0.1250983,99588.0,99587.0,0.25316696]
[1733638686806,0.001,99590.0,99584.0,0.24061688]
[1733638686807,0.12100323,99590.0,99584.0,0.24061688]
[1733638687002,0.12100323,99590.0,99585.0,0.01255032]
[1733638687003,0.12000323,99588.0,99585.0,0.01255032]
[1733638687208,0.03512,99583.0,99582.0,0.03512]
[1733638687408,0.03512,99583.0,99582.0,0.04767031]
[1733638687807,0.12506782,99583.0,99582.0,0.04767031]